[Event "Czech Youth U12 Boys 2024"]
[Site "Kouty nad Desnou"]
[Date "2024.03.14"]
[Round "7.8"]
[White "Gresek, Oskar"]
[Black "Frantsev, Iegor"]
[Result "1/2-1/2"]
[ECO "B13"]
[WhiteElo "1629"]
[BlackElo "1721"]
[Annotator "NA RC"]
[PlyCount "79"]
[EventDate "2024.03.10"]
[EventType "swiss"]
[EventCountry "CZE"]
[SourceTitle "playchess.com"]
[Source "ChessBase"]
[SourceQuality "1"]
[TimeControl "40/5400+30:1800+30"]

1. e4 {[%emt 0:00:06]} c6 {[%emt 0:00:04]} 2. d4 {[%emt 0:00:41]} d5 {[%emt 0:00:06]} 3. exd5 {[%emt 0:00:42]} cxd5 {[%emt 0:00:15]} 4. Nf3 {[%emt 0:00:47]} Nc6 {[%emt 0:00:26]} 5. c3 {[%emt 0:00:35]} Bg4 {[%emt 0:00:14]} 6. Bd3 {[%emt 0:02:58]} e6 {[%emt 0:00:17]} 7. O-O {[%emt 0:00:21]} Nf6 {[%emt 0:00:25]} 8. Bg5 {[%emt 0:00:32]} h6 {[%emt 0:02:13]} 9. Bxf6 {[%emt 0:02:23]} Qxf6 {[%emt 0:00:37]} 10. Nbd2 {[%emt 0:00:27]} Bd6 {[%emt 0:01:35]} 11. Qc2 {[%emt 0:01:25]} O-O {[%emt 0:00:32]} 12. h3 {[%emt 0:02:02]} Bxf3 {[%emt 0:00:29]} 13. Nxf3 {[%emt 0:00:07]} Rac8 {[%emt 0:00:24]} 14. a3 {[%emt 0:01:03]} a6 {[%emt 0:06:35]} 15. Rfe1 {[%emt 0:02:13]} b5 {[%emt 0:01:13]} 16. Qe2 {[%emt 0:03:04]} Na5 {[%emt 0:36:57]} 17. Nd2 {[%emt 0:10:37]} Nc4 {[%emt 0:02:20]} 18. Bxc4 {[%emt 0:02:42]} bxc4 {[%emt 0:00:43]} 19. Nf3 {[%emt 0:01:32]} Rb8 {[%emt 0:02:44]} 20. Rac1 {[%emt 0:02:39]} Rb3 {[%emt 0:00:37]} 21. Rc2 {[%emt 0:00:38]} a5 {[%emt 0:00:27]} 22. Ne5 {[%emt 0:02:33]} Bxe5 {[%emt 0:00:56]} 23. Qxe5 {[%emt 0:00:20]} Qxe5 {[%emt 0:00:27]} 24. Rxe5 {[%emt 0:00:16]} a4 {[%emt 0:00:11]} 25. f4 {[%emt 0:01:14]} Rfb8 {[%emt 0:00:31]} 26. Ree2 {[%emt 0:00:45]} g6 {[%emt 0:00:25]} 27. Kf2 {[%emt 0:01:23]} Kg7 {[%emt 0:00:44]} 28. Kf3 {[%emt 0:00:36]} Kf6 {[%emt 0:01:14]} 29. g3 {[%emt 0:02:33]} Rg8 {[%emt 0:07:18]} 30. Rg2 {[%emt 0:02:58]} Rbb8 {[%emt 0:00:40]} 31. Rcd2 {[%emt 0:01:25]} g5 {[%emt 0:01:32]} 32. Rde2 {[%emt 0:00:23]} Rg6 {[%emt 0:01:07]} 33. Rd2 {[%emt 0:04:25]} Rbg8 {[%emt 0:01:50]} 34. Rde2 {[%emt 0:00:46]} gxf4 {[%emt 0:03:57]} 35. Kxf4 {[%emt 0:06:12]} h5 {[%emt 0:01:34]} 36. Re5 {[%emt 0:03:35]} Rg5 {[%emt 0:03:43]} 37. Rxg5 {[%emt 0:02:30]} Rxg5 {[%emt 0:00:22]} 38. g4 {[%emt 0:02:22]} hxg4 {[%emt 0:11:58]} 39. hxg4 {[%emt 0:02:59]} Rg8 {[%emt 0:03:53]} 40. Rh2 {[%emt 0:02:25]} 1/2-1/2

[Event "Czech Youth U12 Boys 2024"]
[Site "Kouty nad Desnou"]
[Date "2024.03.14"]
[Round "7.9"]
[White "Sotek, Matej"]
[Black "Hanzel, Martin"]
[Result "1-0"]
[ECO "C55"]
[WhiteElo "1716"]
[BlackElo "1474"]
[Annotator "NA RC"]
[PlyCount "67"]
[EventDate "2024.03.10"]
[EventType "swiss"]
[EventCountry "CZE"]
[SourceTitle "playchess.com"]
[Source "ChessBase"]
[SourceQuality "1"]
[TimeControl "40/5400+30:1800+30"]

1. e4 {[%emt 0:00:02]} e5 {[%emt 0:00:08]} 2. Nf3 {[%emt 0:00:14]} Nc6 {[%emt 0:00:09]} 3. d4 {[%emt 0:00:09]} exd4 {[%emt 0:00:09]} 4. Bc4 {[%emt 0:00:08]} Nf6 {[%emt 0:00:12]} 5. e5 {[%emt 0:00:03]} d5 {[%emt 0:00:10]} 6. Bb5 {[%emt 0:00:06]} Ne4 {[%emt 0:00:09]} 7. Nxd4 {[%emt 0:00:20]} Bd7 {[%emt 0:00:07]} 8. Bxc6 {[%emt 0:00:03]} bxc6 {[%emt 0:00:09]} 9. O-O {[%emt 0:00:22]} Bc5 {[%emt 0:00:20]} 10. c3 {[%emt 0:00:50]} Bb6 {[%emt 0:00:11]} 11. f3 {[%emt 0:00:42]} Ng5 {[%emt 0:00:14]} 12. f4 {[%emt 0:00:02]} Ne4 {[%emt 0:00:13]} 13. Be3 {[%emt 0:00:14]} c5 {[%emt 0:01:20]} 14. Nb3 {[%emt 0:01:11]} Bb5 {[%emt 0:01:12]} 15. Re1 {[%emt 0:01:17]} Qd7 {[%emt 0:01:40]} 16. N1d2 {[%emt 0:01:35]} Nxd2 {[%emt 0:01:11]} 17. Qxd2 {[%emt 0:01:43]} c4 {[%emt 0:01:11]} 18. Bxb6 {[%emt 0:01:50]} axb6 {[%emt 0:00:23]} 19. Nd4 {[%emt 0:01:03]} O-O-O {[%emt 0:01:06]} 20. Qc2 {[%emt 0:02:19]} c5 {[%emt 0:02:05]} 21. Nxb5 {[%emt 0:00:39]} Qxb5 {[%emt 0:00:54]} 22. a4 {[%emt 0:01:08]} Qa5 {[%emt 0:01:03]} 23. Qf5+ {[%emt 0:00:24]} Rd7 {[%emt 0:00:40]} 24. e6 {[%emt 0:01:55]} fxe6 {[%emt 0:00:18]} 25. Rxe6 {[%emt 0:02:45]} Qa7 {[%emt 0:01:44]} 26. Rae1 {[%emt 0:00:48]} Kd8 {[%emt 0:01:35]} 27. Rc6 {[%emt 0:03:33]} Qb7 {[%emt 0:01:30]} 28. Qg5+ {[%emt 0:02:11]} Re7 {[%emt 0:02:39]} 29. Rd6+ {[%emt 0:03:38]} Ke8 {[%emt 0:00:37]} 30. Rde6 {[%emt 0:00:18]} Rxe6 {[%emt 0:00:46]} 31. Rxe6+ {[%emt 0:00:01]} Kf8 {[%emt 0:02:09]} 32. Qe5 {[%emt 0:02:24]} Kf7 {[%emt 0:01:32]} 33. Qf5+ {[%emt 0:00:05]} Kg8 {[%emt 0:01:04]} 34. Re8# {[%emt 0:00:04]} 1-0

[Event "Czech Youth U12 Boys 2024"]
[Site "Kouty nad Desnou"]
[Date "2024.03.14"]
[Round "7.10"]
[White "Havlik, David"]
[Black "Malek, Daniel"]
[Result "1-0"]
[ECO "B10"]
[WhiteElo "1580"]
[BlackElo "2278"]
[Annotator "TA"]
[PlyCount "59"]
[EventDate "2024.03.10"]
[EventType "swiss"]
[EventCountry "CZE"]
[SourceTitle "playchess.com"]
[Source "ChessBase"]
[SourceQuality "1"]
[TimeControl "40/5400+30:1800+30"]

{[%evp 9,59,41,54,29,10,-4,-4,-13,34,31,33,-2,59,60,59,32,35,-70,-81,-58,0,-70,-60,-66,-75,-89,-89,-96,-56,-68,0,-65,-41,-100,-52,-90,38,0,57,0,649,615,777,618,867,849,2136,2018,2129,1950,1560,1517]} 1. e4 {[%emt 0:00:02]} c6 {[%emt 0:00:08]} 2. c4 {[%emt 0:00:04]} e6 {[%emt 0:01:05]} 3. Nc3 {[%emt 0:01:28]} Bc5 {[%emt 0:01:41]} 4. d4 {[%emt 0:01:17]} Bb4 {[%emt 0:01:03]} 5. f3 {[%emt 0:02:12]} Ne7 {[%emt 0:02:29]} 6. Nge2 {[%emt 0:08:55]} d5 {[%emt 0:02:14]} 7. a3 {[%emt 0:02:16]} Ba5 {[%emt 0:07:00]} 8. cxd5 {[%emt 0:03:09] The position is equal.} exd5 {[%emt 0:01:49]} (8... cxd5 $11 {was preferrable.} 9. b4 Bc7) 9. Be3 {[%emt 0:03:09]} O-O {[%emt 0:01:38]} 10. Qc2 {[%emt 0:02:07]} Be6 {[%emt 0:05:11]} (10... dxe4 $11 11. fxe4 Re8) 11. Nf4 $14 {[%emt 0:02:16]} Nd7 {[%emt 0:08:26]} 12. Nxe6 {[%emt 0:03:11]} fxe6 {[%emt 0:00:43]} 13. e5 {[%emt 0:01:25]} (13. O-O-O $14) 13... Nf5 $15 {[%emt 0:04:05]} 14. Bf2 {[%emt 0:01:51]} Qc7 {[%emt 0:15:02]} (14... Nh4 $15 15. Rg1 c5 16. dxc5 Qg5 (16... Nxe5 17. O-O-O $14)) 15. Bd3 {[%emt 0:05:20]} (15. O-O-O $1 $11) 15... c5 $1 {[%emt 0:06:00]} 16. Bxf5 {[%emt 0:16:24]} Rxf5 {[%emt 0:01:16]} 17. O-O-O {[%emt 0:01:42][%cal Oc3d5] [#] And now Nxd5! would win.} cxd4 {[%emt 0:02:47]} 18. Bxd4 {[%emt 0:01:21]} Bxc3 {[%emt 0:04:35]} (18... Nxe5 $6 19. Qe2 Bb6 20. f4 $11) 19. Bxc3 {[%emt 0:00:26][%cal Od1d5]} g6 {[%emt 0:05:01]} ({Much weaker is} 19... Nxe5 20. Qe2 (20. Rxd5 $2 exd5 21. Qxf5 d4 $19) 20... Qc4 21. Rhe1 Qxe2 22. Rxe2 $11) (19... Nb6 $15) 20. Rd4 {[%emt 0:07:12]} (20. Kb1 $11) 20... Nxe5 {[%emt 0:04:32]} 21. h4 {[%emt 0:04:39]} (21. Qe2 $15) 21... Rc8 {[%emt 0:02:48]} ({Better is} 21... Qf7 $17 22. Kb1 Rd8) 22. Qe2 $1 {[%emt 0:06:30]} Kf7 {[%emt 0:01:59]} (22... Qf7 $17 {White must now prevent ...Nc6.} 23. Kb1 Nc4) 23. Re1 {[%emt 0:06:36] [#] Kb1 is the strong threat.} Qa5 {[%emt 0:10:10]} (23... Qd6 $11) 24. Kb1 {[%emt 0:05:41]} (24. Qe3 $1 $14 Qb6 25. Rb4 Qxe3+ 26. Rxe3) 24... Qb6 $2 {[%emt 0:01:22][%mdl 8192]} (24... Rxc3 $11 25. bxc3 Qxc3 (25... Qxa3 26. Rb4 $14)) 25. Rb4 $18 {[%emt 0:01:05] White is clearly winning.} Qc6 {[%emt 0:08:11]} 26. Bxe5 {[%emt 0:01:41] Strongly threatening g4.} a5 {[%emt 0:00:28]} 27. Rb3 {[%emt 0:02:44]} b5 {[%emt 0:01:43]} 28. Rc3 {[%emt 0:00:44]} Qb7 {[%emt 0:00:28]} 29. Rxc8 {[%emt 0:01:32]} Qxc8 {[%emt 0:00:02]} 30. g4 {[%emt 0:00:21] Weighted Error Value: White=0.44/Black=0.64.  Loses game:     	---       	Black=1      Mistake:       	White=5     	Black=7      Inaccurate:     	White=3     	Black=1      OK:         	White=3     	Black=7      Strong:       	White=1     	Black=1} 1-0

[Event "Czech Youth U12 Boys 2024"]
[Site "Kouty nad Desnou"]
[Date "2024.03.14"]
[Round "7.11"]
[White "Sochor, Antonin"]
[Black "Zvolanek, Vojtech"]
[Result "1-0"]
[ECO "C54"]
[WhiteElo "1779"]
[BlackElo "1411"]
[Annotator "NA RC"]
[PlyCount "65"]
[EventDate "2024.03.10"]
[EventType "swiss"]
[EventCountry "CZE"]
[SourceTitle "playchess.com"]
[Source "ChessBase"]
[SourceQuality "1"]
[TimeControl "40/5400+30:1800+30"]

1. e4 {[%emt 0:00:04]} e5 {[%emt 0:00:10]} 2. Nf3 {[%emt 0:00:10]} Nc6 {[%emt 0:00:14]} 3. Bc4 {[%emt 0:00:19]} Bc5 {[%emt 0:00:26]} 4. c3 {[%emt 0:00:22]} Nf6 {[%emt 0:00:52]} 5. d4 {[%emt 0:00:41]} exd4 {[%emt 0:00:13]} 6. e5 {[%emt 0:00:17]} d5 {[%emt 0:04:05]} 7. Bb5 {[%emt 0:00:23]} Nd7 {[%emt 0:03:14]} 8. cxd4 {[%emt 0:00:45]} Bb4+ {[%emt 0:02:29]} 9. Bd2 {[%emt 0:01:07]} Bxd2+ {[%emt 0:03:01]} 10. Nbxd2 {[%emt 0:00:22]} O-O {[%emt 0:00:28]} 11. O-O {[%emt 0:10:27]} Re8 {[%emt 0:00:36]} 12. Re1 {[%emt 0:02:10]} Nf8 {[%emt 0:03:05]} 13. Qc2 {[%emt 0:05:00]} Bd7 {[%emt 0:06:17]} 14. Nb3 {[%emt 0:05:33]} Nb4 {[%emt 0:10:35]} 15. Qc3 {[%emt 0:02:14]} Bxb5 {[%emt 0:05:21]} 16. Qxb4 {[%emt 0:00:23]} Bd7 {[%emt 0:00:44]} 17. Qxb7 {[%emt 0:02:19]} Bg4 {[%emt 0:05:51]} 18. Nfd2 {[%emt 0:01:57]} Re6 {[%emt 0:08:41]} 19. Qb5 {[%emt 0:01:42]} Rh6 {[%emt 0:01:29]} 20. Qd3 {[%emt 0:02:03]} Ne6 {[%emt 0:01:54]} 21. Qg3 {[%emt 0:05:02]} Rg6 {[%emt 0:03:05]} 22. f4 {[%emt 0:10:31]} Bf5 {[%emt 0:04:53]} 23. Qe3 {[%emt 0:02:52]} Qh4 {[%emt 0:05:10]} 24. Rf1 {[%emt 0:05:25]} Bh3 {[%emt 0:05:43]} 25. Rf2 {[%emt 0:07:45]} Rf8 {[%emt 0:09:30]} 26. f5 {[%emt 0:06:45]} Rg5 {[%emt 0:05:52]} 27. fxe6 {[%emt 0:03:42]} Qg4 {[%emt 0:06:00]} 28. g3 {[%emt 0:03:00]} fxe6 {[%emt 0:01:03]} 29. Rxf8+ {[%emt 0:01:44]} Kxf8 {[%emt 0:00:09]} 30. Qf3+ {[%emt 0:01:36]} Qxf3 {[%emt 0:00:45]} 31. Nxf3 {[%emt 0:00:19]} Rg4 {[%emt 0:00:32]} 32. Kf2 {[%emt 0:00:39]} h6 {[%emt 0:00:42]} 33. Ng1 {[%emt 0:00:24]} 1-0

[Event "Czech Youth U12 Boys 2024"]
[Site "Kouty nad Desnou"]
[Date "2024.03.14"]
[Round "7.12"]
[White "Broz, Pavel"]
[Black "Novotny, Adam"]
[Result "0-1"]
[ECO "C50"]
[WhiteElo "1911"]
[BlackElo "2072"]
[Annotator "RC"]
[PlyCount "52"]
[EventDate "2024.03.10"]
[EventType "swiss"]
[EventCountry "CZE"]
[SourceTitle "playchess.com"]
[Source "ChessBase"]
[SourceQuality "1"]
[TimeControl "40/5400+30:1800+30"]

1. e4 {[%emt 0:00:11]} e5 {[%emt 0:00:13]} 2. Bc4 {[%emt 0:00:45]} Nc6 {[%emt 0:02:00]} 3. Nf3 {[%emt 0:02:39]} Bc5 {[%emt 0:02:30]} 4. O-O {[%emt 0:03:01]} Nf6 {[%emt 0:02:33]} 5. d4 {[%emt 0:06:16]} Bxd4 {[%emt 0:07:12]} 6. Nxd4 {[%emt 0:10:51]} Nxd4 {[%emt 0:07:31]} 7. f4 {[%emt 0:12:10]} d6 {[%emt 0:07:18]} 8. Be3 {[%emt 0:09:00]} Bg4 {[%emt 0:07:31]} 9. Qd3 {[%emt 0:07:38]} Be2 {[%emt 0:03:52]} 10. Qc3 {[%emt 0:00:50]} Nxe4 {[%emt 0:06:48]} 11. Qb4 {[%emt 0:01:20]} Bxf1 {[%emt 0:04:05]} 12. Kxf1 {[%emt 0:00:29]} Nxc2 {[%emt 0:03:29]} 13. Qa4+ {[%emt 0:00:10]} Qd7 {[%emt 0:10:41]} 14. Qxc2 {[%emt 0:02:33]} Nf6 {[%emt 0:01:17]} 15. fxe5 {[%emt 0:02:45]} dxe5 {[%emt 0:01:49]} 16. Nc3 {[%emt 0:07:05]} O-O {[%emt 0:05:00]} 17. Rd1 {[%emt 0:06:09]} Qg4 {[%emt 0:03:31]} 18. Be2 {[%emt 0:01:36]} Qe6 {[%emt 0:01:54]} 19. Kg1 {[%emt 0:03:51]} Rad8 {[%emt 0:02:41]} 20. Rf1 {[%emt 0:02:51]} Ng4 {[%emt 0:03:25]} 21. Bg5 {[%emt 0:03:38]} f6 {[%emt 0:02:02]} 22. b3 {[%emt 0:01:17]} Qb6+ {[%emt 0:02:37]} 23. Kh1 {[%emt 0:00:07]} Nf2+ {[%emt 0:00:57]} 24. Kg1 {[%emt 0:00:43]} Nh3+ {[%emt 0:00:44]} 25. Kh1 {[%emt 0:00:12]} Qg1+ {[%emt 0:01:02]} 26. Rxg1 {[%emt 0:00:05]} Nf2# {[%emt 0:00:05]} 0-1

[Event "Czech Youth U12 Boys 2024"]
[Site "Kouty nad Desnou"]
[Date "2024.03.15"]
[Round "8.1"]
[White "Zrust, Lukas"]
[Black "Honcharov, Makar"]
[Result "0-1"]
[ECO "C45"]
[WhiteElo "1893"]
[BlackElo "1872"]
[Annotator "NA COMBH"]
[PlyCount "84"]
[EventDate "2024.03.10"]
[EventType "swiss"]
[EventCountry "CZE"]
[SourceTitle "playchess.com"]
[Source "ChessBase"]
[SourceQuality "1"]
[TimeControl "40/5400+30:1800+30"]

1. e4 {[%emt 0:00:04]} e5 {[%emt 0:00:46]} 2. Nf3 {[%emt 0:00:26]} Nc6 {[%emt 0:00:09]} 3. d4 {[%emt 0:00:19]} exd4 {[%emt 0:00:07]} 4. Nxd4 {[%emt 0:00:07]} Bc5 {[%emt 0:00:04]} 5. Be3 {[%emt 0:00:39]} Qf6 {[%emt 0:00:18]} 6. c3 {[%emt 0:00:35]} Nge7 {[%emt 0:00:10]} 7. Be2 {[%emt 0:03:01]} d5 {[%emt 0:00:27]} 8. Nxc6 {[%emt 0:11:56]} Bxe3 {[%emt 0:05:05]} 9. fxe3 {[%emt 0:04:01]} bxc6 {[%emt 0:01:54]} 10. exd5 {[%emt 0:02:12]} cxd5 {[%emt 0:02:55]} 11. Qd4 {[%emt 0:04:21]} Qg6 {[%emt 0:04:15]} 12. O-O {[%emt 0:04:43]} O-O {[%emt 0:02:19]} 13. Kh1 {[%emt 0:11:57]} Rb8 {[%emt 0:01:04]} 14. b3 {[%emt 0:01:18]} Nf5 {[%emt 0:02:30]} 15. Qf4 {[%emt 0:11:09]} Nd6 {[%emt 0:07:06]} 16. Rd1 {[%emt 0:08:19]} Ne4 {[%emt 0:10:49]} 17. Bd3 {[%emt 0:07:03]} Bf5 {[%emt 0:01:00]} 18. Bxe4 {[%emt 0:01:48]} Bxe4 {[%emt 0:00:05]} 19. Qf2 {[%emt 0:01:11]} Rfe8 {[%emt 0:20:24]} 20. Nd2 {[%emt 0:03:34]} Bf5 {[%emt 0:06:57]} 21. Rf1 {[%emt 0:04:03]} Bd3 {[%emt 0:06:21]} 22. Rfe1 {[%emt 0:03:15]} Rb6 {[%emt 0:02:12]} 23. Rac1 {[%emt 0:03:56]} Rf6 {[%emt 0:04:58]} 24. Qg1 {[%emt 0:00:24]} Qf5 {[%emt 0:04:24]} 25. Nf3 {[%emt 0:02:03]} Qh5 {[%emt 0:02:42]} 26. Rcd1 {[%emt 0:06:13]} Be4 {[%emt 0:01:52]} 27. Nd2 {[%emt 0:01:20]} Bd3 {[%emt 0:02:04]} 28. Nf3 {[%emt 0:00:54]} Bc2 {[%emt 0:00:41]} 29. Rc1 {[%emt 0:00:31]} Be4 {[%emt 0:00:52]} 30. Nd2 {[%emt 0:00:35]} Bd3 {[%emt 0:04:42]} 31. c4 {[%emt 0:01:30]} Ra6 {[%emt 0:01:57]} 32. a4 {[%emt 0:00:39]} dxc4 {[%emt 0:00:51]} 33. Nxc4 {[%emt 0:00:15]} Rg6 {[%emt 0:00:43]} 34. Nd2 {[%emt 0:00:15]} c6 {[%emt 0:00:53]} 35. Rc3 {[%emt 0:00:54]} Ba6 {[%emt 0:01:07]} 36. e4 {[%emt 0:01:11]} Rd8 {[%emt 0:02:03]} 37. Qxa7 {[%emt 0:01:07]} Qg5 {[%emt 0:00:20]} 38. Rg3 {[%emt 0:01:05]} Qxd2 {[%emt 0:00:18]} 39. Rg1 {[%emt 0:00:33]} Rxg3 {[%emt 0:00:19]} 40. Qxa6 {[%emt 0:00:17]} Rxg2 {[%emt 0:00:28]} 41. Rxg2 {[%emt 0:30:07]} Qe1+ {[%emt 0:30:03]} 42. Rg1 {[%emt 0:00:18]} Qxe4+ {[%emt 0:00:05]} 0-1

[Event "Czech Youth U12 Boys 2024"]
[Site "Kouty nad Desnou"]
[Date "2024.03.15"]
[Round "8.2"]
[White "Kolar, Edvard"]
[Black "Policar, Martin"]
[Result "0-1"]
[ECO "A40"]
[WhiteElo "1759"]
[BlackElo "1758"]
[Annotator "NA COMBH"]
[PlyCount "92"]
[EventDate "2024.03.10"]
[EventType "swiss"]
[EventCountry "CZE"]
[SourceTitle "playchess.com"]
[Source "ChessBase"]
[SourceQuality "1"]
[TimeControl "40/5400+30:1800+30"]

1. d4 g6 {[%emt 0:00:22]} 2. Nc3 {[%emt 0:00:58]} d5 {[%emt 0:01:56]} 3. Bf4 {[%emt 0:00:52]} Nf6 {[%emt 0:00:58]} 4. f3 {[%emt 0:01:43]} Bg7 {[%emt 0:02:11]} 5. Qd2 {[%emt 0:03:10]} O-O {[%emt 0:02:55]} 6. h4 {[%emt 0:01:07]} c5 {[%emt 0:02:18]} 7. e3 {[%emt 0:10:31]} Nc6 {[%emt 0:05:55]} 8. O-O-O {[%emt 0:02:25]} c4 {[%emt 0:03:58]} 9. e4 {[%emt 0:02:41]} dxe4 {[%emt 0:01:01]} 10. fxe4 {[%emt 0:01:53]} Ng4 {[%emt 0:00:37]} 11. e5 {[%emt 0:07:52]} Bf5 {[%emt 0:10:42]} 12. Bxc4 {[%emt 0:06:03]} Rc8 {[%emt 0:09:28]} 13. g3 {[%emt 0:14:41]} Ncxe5 {[%emt 0:01:53]} 14. Bb3 {[%emt 0:07:19]} Nc4 {[%emt 0:13:31]} 15. Bxc4 {[%emt 0:03:12]} Rxc4 {[%emt 0:00:52]} 16. Nf3 {[%emt 0:00:36]} Qa5 {[%emt 0:06:49]} 17. Qe2 {[%emt 0:12:18]} Rfc8 {[%emt 0:03:49]} 18. Ne5 {[%emt 0:05:31]} Nxe5 {[%emt 0:00:52]} 19. dxe5 {[%emt 0:00:44]} Rxc3 {[%emt 0:07:46]} 20. bxc3 {[%emt 0:08:01]} Qxc3 {[%emt 0:00:19]} 21. g4 {[%emt 0:04:35]} Qa1+ {[%emt 0:00:38]} 22. Kd2 {[%emt 0:00:20]} Rxc2+ {[%emt 0:00:11]} 23. Ke1 {[%emt 0:00:14]} Rxe2+ {[%emt 0:00:06]} 24. Kxe2 {[%emt 0:00:02]} Bxg4+ {[%emt 0:00:06]} 25. Kd2 {[%emt 0:00:06]} Qd4+ {[%emt 0:00:35]} 26. Kc2 {[%emt 0:00:05]} Bxd1+ {[%emt 0:00:19]} 27. Rxd1 {[%emt 0:00:02]} Qxf4 {[%emt 0:00:13]} 28. Rd8+ {[%emt 0:00:04]} Bf8 {[%emt 0:00:13]} 29. Rxf8+ {[%emt 0:00:07]} Kxf8 {[%emt 0:00:05]} 30. h5 {[%emt 0:00:02]} Qf5+ {[%emt 0:00:22]} 31. Kb3 {[%emt 0:00:04]} Qxh5 {[%emt 0:00:08]} 32. e6 {[%emt 0:00:04]} Qd5+ {[%emt 0:00:09]} 33. Kc3 {[%emt 0:00:08]} Qxe6 {[%emt 0:00:06]} 34. a4 {[%emt 0:00:06]} h5 {[%emt 0:00:13]} 35. a5 {[%emt 0:00:03]} h4 {[%emt 0:00:11]} 36. a6 {[%emt 0:00:09]} Qxa6 {[%emt 0:00:09]} 37. Kb2 {[%emt 0:00:24]} h3 {[%emt 0:00:08]} 38. Kb3 {[%emt 0:00:16]} h2 {[%emt 0:00:07]} 39. Kb2 {[%emt 0:00:07]} h1=Q {[%emt 0:00:26]} 40. Kc3 {[%emt 0:00:06]} Qd1 {[%emt 0:00:34]} 41. Kb4 {[%emt 0:30:29]} Qaa4+ {[%emt 0:30:55]} 42. Kc3 {[%emt 0:00:24]} Qac2+ {[%emt 0:00:28]} 43. Kb4 {[%emt 0:00:15]} Qb3+ {[%emt 0:00:56]} 44. Kc5 {[%emt 0:00:12]} Qc3+ {[%emt 0:00:41]} 45. Kb5 {[%emt 0:00:10]} Qd5+ {[%emt 0:00:10]} 46. Ka4 {[%emt 0:00:09]} b5# 0-1

[Event "Czech Youth U12 Boys 2024"]
[Site "Kouty nad Desnou"]
[Date "2024.03.15"]
[Round "8.3"]
[White "Hladky, Mikulas"]
[Black "Velim, Vojtech"]
[Result "0-1"]
[ECO "B10"]
[WhiteElo "1798"]
[BlackElo "1889"]
[Annotator "NA COMBH"]
[PlyCount "110"]
[EventDate "2024.03.10"]
[EventType "swiss"]
[EventCountry "CZE"]
[SourceTitle "playchess.com"]
[Source "ChessBase"]
[SourceQuality "1"]
[TimeControl "40/5400+30:1800+30"]

1. e4 {[%emt 0:00:06]} c6 {[%emt 0:00:03]} 2. Nc3 {[%emt 0:00:07]} d5 {[%emt 0:00:05]} 3. Nf3 {[%emt 0:00:15]} Nf6 {[%emt 0:00:05]} 4. exd5 {[%emt 0:00:57]} cxd5 {[%emt 0:00:06]} 5. d4 {[%emt 0:00:12]} Nc6 {[%emt 0:00:11]} 6. Bb5 {[%emt 0:01:33]} Bg4 {[%emt 0:04:41]} 7. h3 {[%emt 0:00:51]} Bxf3 {[%emt 0:00:05]} 8. Qxf3 {[%emt 0:00:06]} e6 {[%emt 0:01:06]} 9. O-O {[%emt 0:00:37]} Be7 {[%emt 0:02:23]} 10. Qg3 {[%emt 0:03:56]} Qb6 {[%emt 0:10:19]} 11. Qd3 {[%emt 0:07:51]} O-O {[%emt 0:03:13]} 12. Bxc6 {[%emt 0:00:47]} bxc6 {[%emt 0:00:25]} 13. Na4 {[%emt 0:02:25]} Qc7 {[%emt 0:06:54]} 14. Bg5 {[%emt 0:07:50]} Rfc8 {[%emt 0:13:43]} 15. Rfe1 {[%emt 0:04:33]} Rab8 {[%emt 0:02:05]} 16. b3 {[%emt 0:00:44]} c5 {[%emt 0:09:28]} 17. Nxc5 {[%emt 0:01:20]} Bxc5 {[%emt 0:00:20]} 18. dxc5 {[%emt 0:00:20]} Ne4 {[%emt 0:00:50]} 19. Be3 {[%emt 0:02:47]} Nxc5 {[%emt 0:00:46]} 20. Bxc5 {[%emt 0:00:07]} Qxc5 {[%emt 0:00:10]} 21. Rac1 {[%emt 0:02:06]} Qa3 {[%emt 0:06:41]} 22. c4 {[%emt 0:03:12]} dxc4 {[%emt 0:06:36]} 23. Rxc4 {[%emt 0:01:21]} Rxc4 {[%emt 0:02:25]} 24. Qxc4 {[%emt 0:00:29]} Qxa2 {[%emt 0:00:16]} 25. Rc1 {[%emt 0:01:04]} h6 {[%emt 0:01:14]} 26. Rc3 {[%emt 0:01:08]} a5 {[%emt 0:01:50]} 27. Qc7 {[%emt 0:05:54]} Kh7 {[%emt 0:11:11]} 28. Qg3 {[%emt 0:01:01]} Rd8 {[%emt 0:00:52]} 29. Qf3 {[%emt 0:03:44]} Qa3 {[%emt 0:05:09]} 30. Kh2 {[%emt 0:04:32]} Qd6+ {[%emt 0:01:56]} 31. g3 {[%emt 0:03:20]} Qe5 {[%emt 0:03:27]} 32. Re3 {[%emt 0:01:02]} Qc7 {[%emt 0:00:46]} 33. Rc3 {[%emt 0:01:02]} Qd6 {[%emt 0:01:29]} 34. Re3 {[%emt 0:01:39]} Qe7 {[%emt 0:01:20]} 35. Qf5+ {[%emt 0:01:58]} exf5 {[%emt 0:01:14]} 36. Rxe7 {[%emt 0:00:05]} Rd2 {[%emt 0:01:34]} 37. Kg2 {[%emt 0:00:20]} Kg6 {[%emt 0:00:37]} 38. Re5 {[%emt 0:00:33]} Ra2 {[%emt 0:00:40]} 39. Rb5 {[%emt 0:00:42]} Kf6 {[%emt 0:00:46]} 40. Kf3 {[%emt 0:02:46]} Ra3 {[%emt 0:00:34]} 41. Kg2 {[%emt 0:30:57]} g6 {[%emt 0:30:10]} 42. h4 {[%emt 0:04:20]} h5 {[%emt 0:01:50]} 43. Kf1 {[%emt 0:01:57]} Ke6 {[%emt 0:00:19]} 44. Ke2 {[%emt 0:01:05]} Ra2+ {[%emt 0:00:29]} 45. Ke3 {[%emt 0:00:23]} Kd6 {[%emt 0:00:29]} 46. Rb7 {[%emt 0:02:36]} Rb2 {[%emt 0:00:53]} 47. Rxf7 {[%emt 0:01:59]} Rxb3+ {[%emt 0:00:09]} 48. Kf4 {[%emt 0:01:08]} Rb4+ {[%emt 0:00:46]} 49. Ke3 {[%emt 0:00:58]} Kc5 {[%emt 0:00:45]} 50. Rf6 {[%emt 0:02:03]} Rb6 {[%emt 0:00:19]} 51. Rf8 {[%emt 0:01:49]} Kb4 {[%emt 0:00:10]} 52. Rd8 {[%emt 0:00:18]} a4 {[%emt 0:00:44]} 53. f3 {[%emt 0:00:57]} a3 {[%emt 0:00:42]} 54. Kf4 {[%emt 0:00:36]} a2 {[%emt 0:00:26]} 55. Rd1 {[%emt 0:00:10]} Kc3 {[%emt 0:00:09]} 0-1